[Event "Polofinale MCR junioru 2023"]
[Site "Czech Republic"]
[Date "2023.11.14"]
[Round "5.21"]
[White "Veny, Jaume"]
[Black "Zezula, Jakub"]
[Result "0-1"]
[TimeControl "90 min per 40 moves + 15 min + 30 sec / move from move 1"]
[WhiteFideId "397792"]
[BlackFideId "23723203"]
[WhiteElo "1729"]
[BlackElo "2002"]

1. e4 {[%clk 01:30:56]} {[%emt 00:00:03]} Nc6 {[%clk 01:30:53]} {[%emt
00:00:07]} 2. Nf3 {[%clk 01:31:15]} {[%emt 00:00:11]} e5 {[%clk 01:31:17]}
{[%emt 00:00:06]} 3. Bb5 {[%clk 01:31:24]} {[%emt 00:00:22]} a6 {[%clk
01:31:41]} {[%emt 00:00:06]} 4. Bxc6 {[%clk 01:31:40]} {[%emt 00:00:13]} dxc6
{[%clk 01:32:04]} {[%emt 00:00:07]} 5. d4 {[%clk 01:32:05]} {[%emt 00:00:05]}
exd4 {[%clk 01:32:23]} {[%emt 00:00:11]} 6. Qxd4 {[%clk 01:32:30]} {[%emt
00:00:05]} Qxd4 {[%clk 01:32:43]} {[%emt 00:00:09]} 7. Nxd4 {[%clk 01:32:56]}
{[%emt 00:00:04]} c5 {[%clk 01:33:06]} {[%emt 00:00:07]} 8. Ne2 {[%clk
01:33:14]} {[%emt 00:00:12]} Bd7 {[%clk 01:32:52]} {[%emt 00:00:44]} 9. Bf4
{[%clk 01:33:31]} {[%emt 00:00:13]} O-O-O {[%clk 01:32:56]} {[%emt 00:00:27]}
10. Nbc3 {[%clk 01:33:43]} {[%emt 00:00:18]} Be6 {[%clk 01:30:34]} {[%emt
00:02:51]} 11. O-O {[%clk 01:29:15]} {[%emt 00:04:58]} Ne7 {[%clk 01:28:37]}
{[%emt 00:02:28]} 12. Rad1 {[%clk 01:25:37]} {[%emt 00:04:07]} Re8 {[%clk
01:28:29]} {[%emt 00:00:38]} 13. Bg3 {[%clk 01:21:25]} {[%emt 00:04:42]} f6
{[%clk 01:28:29]} {[%emt 00:00:30]} 14. f3 {[%clk 01:17:43]} {[%emt 00:04:12]}
Bf7 {[%clk 01:27:23]} {[%emt 00:01:35]} 15. Nf4 {[%clk 01:13:53]} {[%emt
00:04:20]} Nc6 {[%clk 01:26:46]} {[%emt 00:01:07]} 16. Nfd5 {[%clk 01:11:50]}
{[%emt 00:02:33]} Ne5 {[%clk 01:27:03]} {[%emt 00:00:14]} 17. Ne3 {[%clk
01:10:02]} {[%emt 00:02:18]} h5 {[%clk 01:21:37]} {[%emt 00:05:56]} 18. h4
{[%clk 01:02:59]} {[%emt 00:07:32]} c4 {[%clk 01:18:38]} {[%emt 00:03:30]} 19.
a4 {[%clk 01:00:13]} {[%emt 00:03:17]} Bc5 {[%clk 01:16:19]} {[%emt 00:02:48]}
20. Bf2 {[%clk 01:00:34]} {[%emt 00:00:09]} Ng6 {[%clk 01:14:45]} {[%emt
00:02:03]} 21. Nf5 {[%emt 00:09:21]} Bf8 {[%clk 01:07:49]} 22. g3 {[%clk
00:56:43]} {[%emt 00:02:57]} Ne5 {[%clk 01:07:23]} {[%emt 00:00:56]} 23. Kg2
{[%clk 00:57:02]} {[%emt 00:00:11]} Nc6 {[%clk 01:03:02]} {[%emt 00:04:50]} 24.
Rfe1 {[%clk 00:51:56]} {[%emt 00:05:37]} Rg8 {[%clk 01:00:18]} {[%emt
00:03:14]} 25. Ne3 {[%clk 00:49:14]} {[%emt 00:03:12]} Bb4 {[%clk 00:52:18]}
{[%emt 00:08:30]} 26. Re2 {[%clk 00:43:20]} {[%emt 00:06:24]} Bxc3 {[%clk
00:49:40]} {[%emt 00:03:08]} 27. bxc3 {[%clk 00:43:44]} {[%emt 00:00:06]} Rd8
{[%clk 00:50:01]} {[%emt 00:00:09]} 28. Red2 {[%clk 00:43:38]} {[%emt
00:00:36]} Rxd2 {[%clk 00:49:47]} {[%emt 00:00:44]} 29. Rxd2 {[%clk 00:44:03]}
{[%emt 00:00:05]} Rd8 {[%clk 00:48:25]} {[%emt 00:01:51]} 30. Rxd8+ {[%clk
00:36:50]} {[%emt 00:07:42]} Kxd8 {[%clk 00:48:01]} {[%emt 00:00:55]} 31. f4
{[%clk 00:34:23]} {[%emt 00:02:57]} g6 {[%clk 00:43:28]} {[%emt 00:05:02]} 32.
Kf3 {[%clk 00:32:50]} {[%emt 00:02:02]} Ne7 {[%clk 00:40:42]} {[%emt 00:03:16]}
33. Nd1 {[%clk 00:24:30]} {[%emt 00:08:50]} Be8 {[%clk 00:38:23]} {[%emt
00:02:50]} 34. Nb2 {[%clk 00:24:55]} {[%emt 00:00:05]} b5 {[%clk 00:37:17]}
{[%emt 00:01:35]} 35. Bc5 {[%clk 00:24:26]} {[%emt 00:00:59]} Bc6 {[%clk
00:33:24]} {[%emt 00:04:24]} 36. Bxe7+ {[%clk 00:21:12]} {[%emt 00:03:44]} Kxe7
{[%clk 00:33:41]} {[%emt 00:00:13]} 37. Ke3 {[%clk 00:21:35]} {[%emt 00:00:07]}
Kd6 {[%clk 00:33:45]} {[%emt 00:00:25]} 38. Kd4 {[%clk 00:20:54]} {[%emt
00:01:11]} Bd7 {[%clk 00:33:13]} {[%emt 00:01:02]} 39. axb5 {[%clk 00:19:27]}
{[%emt 00:01:57]} axb5 {[%clk 00:33:33]} {[%emt 00:00:10]} 40. e5+ {[%clk
00:18:46]} {[%emt 00:01:11]} fxe5+ {[%clk 00:32:04]} {[%emt 00:01:58]} 41.
fxe5+ {[%clk 00:19:11]} {[%emt 00:00:06]} Ke6 {[%clk 00:32:06]} {[%emt
00:00:28]} 42. Nd1 {[%clk 00:19:01]} {[%emt 00:00:40]} c5+ {[%clk 00:31:52]}
{[%emt 00:00:44]} 43. Ke4 {[%clk 00:05:52]} {[%emt 00:13:39]} Bc6+ {[%clk
00:31:56]} {[%emt 00:00:26]} 44. Kf4 {[%clk 00:06:15]} {[%emt 00:00:06]} b4
{[%clk 00:32:16]} {[%emt 00:00:11]} 45. cxb4 {[%clk 00:05:55]} {[%emt
00:00:50]} cxb4 {[%clk 00:32:30]} {[%emt 00:00:16]} 46. Ne3 {[%clk 00:06:48]}
{[%emt 00:14:37]} c3 {[%clk 00:45:35]} {[%emt 00:02:25]} 47. Nc4 {[%clk
00:06:40]} {[%emt 00:00:38]} b3 {[%clk 00:45:08]} {[%emt 00:00:56]} 48. Na3
{[%clk 00:05:33]} {[%emt 00:01:36]} b2 {[%clk 00:45:30]} {[%emt 00:00:08]} 49.
Nb1 {[%clk 00:05:52]} {[%emt 00:00:11]} Ba4 {[%clk 00:45:46]} {[%emt 00:00:14]}
50. Nxc3 {[%clk 00:06:12]} {[%emt 00:00:10]} Bxc2 {[%clk 00:46:10]} {[%emt
00:00:06]} 0-1

[Event "Polofinale MCR junioru 2023"]
[Site "Czech Republic"]
[Date "2023.11.14"]
[Round "5.22"]
[White "Svadlenka, Michal"]
[Black "Benes, Jachym"]
[Result "1/2-1/2"]
[TimeControl "90 min per 40 moves + 15 min + 30 sec / move from move 1"]
[WhiteFideId "23717068"]
[BlackFideId "23710870"]
[WhiteElo "1689"]
[BlackElo "1950"]

1. e4 {[%clk 01:30:58]} e6 {[%clk 01:30:20]} {[%emt 00:00:41]} 2. d4 {[%clk
01:31:23]} {[%emt 00:00:06]} d5 {[%clk 01:30:39]} {[%emt 00:00:11]} 3. exd5
{[%clk 01:31:47]} {[%emt 00:00:06]} exd5 {[%clk 01:31:03]} {[%emt 00:00:06]} 4.
Bd3 {[%clk 01:32:11]} {[%emt 00:00:06]} Bd6 {[%clk 01:31:00]} {[%emt 00:00:33]}
5. Nc3 {[%clk 01:32:16]} {[%emt 00:00:25]} c6 {[%clk 01:31:25]} {[%emt
00:00:05]} 6. Nge2 {[%clk 01:31:47]} {[%emt 00:00:59]} Nf6 {[%clk 01:31:29]}
{[%emt 00:00:26]} 7. O-O {[%clk 01:31:52]} {[%emt 00:00:25]} O-O {[%clk
01:29:58]} {[%emt 00:02:01]} 8. h3 {[%clk 01:30:20]} {[%emt 00:02:02]} Nbd7
{[%clk 01:29:02]} {[%emt 00:01:26]} 9. Re1 {[%clk 01:29:05]} {[%emt 00:01:45]}
Re8 {[%clk 01:29:21]} {[%emt 00:00:11]} 10. Be3 {[%clk 01:28:57]} {[%emt
00:00:38]} Nf8 {[%clk 01:28:42]} {[%emt 00:01:09]} 11. Qd2 {[%clk 01:27:49]}
{[%emt 00:01:38]} Ng6 {[%clk 01:28:07]} {[%emt 00:01:05]} 12. Nf4 {[%clk
01:24:30]} {[%emt 00:03:49]} Ne7 {[%clk 01:25:55]} {[%emt 00:02:42]} 13. Nfe2
{[%clk 01:16:15]} {[%emt 00:08:44]} Bf5 {[%clk 01:20:23]} {[%emt 00:06:02]} 14.
Bf4 {[%clk 01:13:25]} {[%emt 00:03:20]} Bxd3 {[%clk 01:18:15]} {[%emt
00:02:38]} 15. Qxd3 {[%clk 01:13:41]} {[%emt 00:00:14]} Ng6 {[%clk 01:18:36]}
{[%emt 00:00:09]} 16. Bxd6 {[%clk 01:13:11]} {[%emt 00:00:59]} Qxd6 {[%clk
01:19:02]} {[%emt 00:00:05]} 17. Ng3 {[%clk 01:13:27]} {[%emt 00:00:14]} Qb4
{[%clk 01:14:53]} {[%emt 00:04:40]} 18. b3 {[%clk 01:10:08]} {[%emt 00:03:48]}
Rxe1+ {[%clk 00:58:47]} {[%emt 00:16:35]} 19. Rxe1 {[%clk 01:10:25]} {[%emt
00:00:13]} Nf4 {[%clk 00:59:07]} {[%emt 00:00:11]} 20. Qd2 {[%clk 01:07:54]}
{[%emt 00:03:02]} Ne6 {[%clk 00:59:31]} {[%emt 00:00:06]} 21. Rd1 {[%clk
01:07:06]} {[%emt 00:01:17]} a5 {[%clk 00:58:46]} {[%emt 00:01:15]} 22. a4
{[%clk 01:04:06]} {[%emt 00:03:29]} Re8 {[%clk 00:55:58]} {[%emt 00:03:18]} 23.
Nce2 {[%clk 01:02:24]} {[%emt 00:02:13]} Qxd2 {[%clk 00:56:08]} {[%emt
00:00:20]} 24. Rxd2 {[%clk 01:02:52]} {[%emt 00:00:02]} g6 {[%clk 00:55:13]}
{[%emt 00:01:25]} 25. f3 {[%clk 01:02:26]} {[%emt 00:00:56]} h5 {[%clk
00:55:22]} {[%emt 00:00:21]} 26. Kf2 {[%clk 01:02:33]} {[%emt 00:00:24]} h4
{[%clk 00:53:24]} {[%emt 00:02:28]} 27. Nf1 {[%clk 01:02:51]} {[%emt 00:00:11]}
Nh5 {[%clk 00:53:26]} {[%emt 00:00:29]} 28. Ne3 {[%clk 01:02:34]} {[%emt
00:00:47]} Nef4 {[%clk 00:52:31]} {[%emt 00:01:25]} 29. Nxf4 {[%clk 01:02:14]}
{[%emt 00:00:50]} Nxf4 {[%clk 00:52:58]} {[%emt 00:00:04]} 30. Ng4 {[%clk
01:02:06]} {[%emt 00:00:38]} Kg7 {[%clk 00:53:22]} {[%emt 00:00:06]} 31. Ne5
{[%clk 01:01:29]} {[%emt 00:01:07]} Re7 {[%clk 00:52:45]} {[%emt 00:01:07]}
1/2-1/2

[Event "Polofinale MCR junioru 2023"]
[Site "Czech Republic"]
[Date "2023.11.14"]
[Round "5.23"]
[White "Svacina, Tobias"]
[Black "Zezula, Matej"]
[Result "1-0"]
[TimeControl "90 min per 40 moves + 15 min + 30 sec / move from move 1"]
[WhiteFideId "385859"]
[BlackFideId "23725796"]
[WhiteElo "1941"]
[BlackElo "1666"]

1. e4 {[%clk 01:30:04]} {[%emt 00:00:55]} c5 {[%clk 01:30:46]} {[%emt
00:00:15]} 2. Nf3 {[%clk 01:29:42]} {[%emt 00:00:53]} Nc6 {[%clk 01:30:36]}
{[%emt 00:00:40]} 3. d4 {[%clk 01:28:59]} {[%emt 00:01:13]} cxd4 {[%clk
01:30:54]} {[%emt 00:00:12]} 4. Nxd4 {[%clk 01:28:52]} {[%emt 00:00:37]} Nf6
{[%clk 01:31:16]} {[%emt 00:00:07]} 5. Nc3 {[%clk 01:28:29]} {[%emt 00:00:54]}
e5 {[%clk 01:31:30]} {[%emt 00:00:16]} 6. Ndb5 {[%clk 01:27:49]} {[%emt
00:01:09]} d6 {[%clk 01:31:43]} {[%emt 00:00:17]} 7. Bg5 {[%clk 01:26:57]}
{[%emt 00:01:21]} a6 {[%clk 01:31:56]} {[%emt 00:00:17]} 8. Na3 {[%clk
01:26:06]} {[%emt 00:01:21]} b5 {[%clk 01:32:13]} {[%emt 00:00:14]} 9. Nd5
{[%clk 01:25:05]} {[%emt 00:01:30]} Be7 {[%clk 01:32:25]} {[%emt 00:00:17]} 10.
Bxf6 {[%clk 01:24:47]} {[%emt 00:00:49]} Bxf6 {[%clk 01:32:49]} {[%emt
00:00:07]} 11. c3 {[%clk 01:24:38]} {[%emt 00:00:39]} O-O {[%clk 01:32:48]}
{[%emt 00:00:31]} 12. h4 {[%clk 01:23:09]} {[%emt 00:01:59]} Rb8 {[%clk
01:27:28]} {[%emt 00:05:50]} 13. Nc2 {[%clk 01:22:35]} {[%emt 00:01:03]} Bb7
{[%clk 01:20:36]} {[%emt 00:07:23]} 14. g3 {[%clk 01:16:27]} {[%emt 00:06:38]}
Be7 {[%clk 01:14:46]} {[%emt 00:06:19]} 15. Bh3 {[%clk 01:13:46]} {[%emt
00:03:12]} Bc8 {[%clk 01:13:48]} {[%emt 00:01:28]} 16. Bxc8 {[%clk 01:14:04]}
{[%emt 00:00:12]} Rxc8 {[%clk 01:14:10]} {[%emt 00:00:08]} 17. Nce3 {[%clk
01:14:03]} {[%emt 00:00:31]} a5 {[%clk 01:12:57]} {[%emt 00:01:43]} 18. O-O
{[%clk 01:05:26]} {[%emt 00:09:06]} b4 {[%clk 00:59:09]} {[%emt 00:14:19]} 19.
Qa4 {[%clk 00:56:47]} {[%emt 00:09:08]} bxc3 {[%clk 00:58:50]} {[%emt
00:00:49]} 20. bxc3 {[%clk 00:56:48]} {[%emt 00:00:30]} Re8 {[%clk 00:54:29]}
{[%emt 00:04:50]} 21. Rab1 {[%clk 00:51:53]} {[%emt 00:05:24]} Bf8 {[%clk
00:53:54]} {[%emt 00:01:05]} 22. Rb7 {[%clk 00:45:12]} {[%emt 00:07:12]} Re6
{[%clk 00:52:26]} {[%emt 00:01:58]} 23. Rfb1 {[%clk 00:39:58]} {[%emt
00:05:44]} Rg6 {[%clk 00:51:01]} {[%emt 00:01:55]} 24. Nf5 {[%clk 00:39:09]}
{[%emt 00:01:19]} Re6 {[%clk 00:47:54]} {[%emt 00:03:37]} 25. R1b6 {[%clk
00:22:37]} {[%emt 00:17:02]} Nb8 {[%clk 00:46:34]} {[%emt 00:01:50]} 26. Qb5
{[%clk 00:21:12]} {[%emt 00:01:55]} Re8 {[%clk 00:46:10]} {[%emt 00:00:54]} 27.
Qxa5 {[%clk 00:19:15]} {[%emt 00:02:28]} Nd7 {[%clk 00:44:45]} {[%emt
00:01:55]} 28. Nh6+ {[%clk 00:18:46]} {[%emt 00:00:58]} gxh6 {[%clk 00:43:25]}
{[%emt 00:01:49]} 29. Rxd7 {[%clk 00:19:05]} {[%emt 00:00:13]} 1-0

[Event "Polofinale MCR junioru 2023"]
[Site "Czech Republic"]
[Date "2023.11.14"]
[Round "5.24"]
[White "Pressler, Tobias"]
[Black "Nespurek, Jakub"]
[Result "0-1"]
[TimeControl "90 min per 40 moves + 15 min + 30 sec / move from move 1"]
[WhiteFideId "23715359"]
[BlackFideId "391816"]
[WhiteElo "1937"]
[BlackElo "1680"]

1. f4 {[%clk 01:30:57]} {[%emt 00:00:02]} g6 {[%clk 01:30:36]} {[%emt
00:00:24]} 2. Nf3 {[%clk 01:31:07]} {[%emt 00:00:20]} d6 {[%clk 01:30:20]}
{[%emt 00:00:47]} 3. g3 {[%clk 01:30:48]} {[%emt 00:00:49]} Bg7 {[%clk
01:29:59]} {[%emt 00:00:51]} 4. Bg2 {[%clk 01:31:13]} {[%emt 00:00:05]} Nf6
{[%clk 01:29:59]} {[%emt 00:00:30]} 5. O-O {[%clk 01:31:35]} {[%emt 00:00:07]}
O-O {[%clk 01:29:55]} {[%emt 00:00:34]} 6. d3 {[%clk 01:32:01]} {[%emt
00:00:04]} Nc6 {[%clk 01:26:46]} {[%emt 00:03:39]} 7. h3 {[%clk 01:31:25]}
{[%emt 00:01:05]} e5 {[%clk 01:26:14]} {[%emt 00:01:02]} 8. e4 {[%clk
01:31:38]} {[%emt 00:00:17]} exf4 {[%clk 01:25:42]} {[%emt 00:01:02]} 9. gxf4
{[%clk 01:31:15]} {[%emt 00:00:53]} Nh5 {[%clk 01:23:28]} {[%emt 00:02:44]} 10.
Nc3 {[%clk 01:07:15]} {[%emt 00:24:30]} Nd4 {[%clk 01:22:19]} {[%emt 00:01:38]}
11. Be3 {[%clk 01:06:17]} {[%emt 00:01:28]} Nxf3+ {[%clk 01:22:10]} {[%emt
00:00:40]} 12. Qxf3 {[%clk 01:06:33]} {[%emt 00:00:15]} f5 {[%clk 01:17:45]}
{[%emt 00:04:55]} 13. Rae1 {[%clk 01:05:27]} {[%emt 00:01:35]} fxe4 {[%clk
01:05:49]} {[%emt 00:12:26]} 14. dxe4 {[%clk 00:59:08]} {[%emt 00:06:49]} Nxf4
{[%clk 00:58:22]} {[%emt 00:07:57]} 15. Bxf4 {[%clk 00:59:04]} {[%emt
00:00:34]} g5 {[%clk 00:56:20]} {[%emt 00:02:32]} 16. e5 {[%clk 00:58:51]}
{[%emt 00:00:43]} Rxf4 {[%clk 00:54:46]} {[%emt 00:02:04]} 17. Qd5+ {[%clk
00:59:13]} {[%emt 00:00:08]} Kh8 {[%clk 00:54:49]} {[%emt 00:00:27]} 18. Rxf4
{[%clk 00:58:09]} {[%emt 00:01:33]} gxf4 {[%clk 00:55:03]} {[%emt 00:00:16]} 19.
e6 {[%clk 00:58:17]} {[%emt 00:00:23]} Qe7 {[%clk 00:53:07]} {[%emt 00:02:26]}
20. Qf5 {[%clk 00:53:33]} {[%emt 00:05:14]} Be5 {[%clk 00:41:02]} {[%emt
00:12:35]} 21. Bd5 {[%clk 00:49:15]} {[%emt 00:04:48]} c6 {[%clk 00:36:37]}
{[%emt 00:04:55]} 22. Bb3 {[%clk 00:49:07]} {[%emt 00:00:38]} Qf6 {[%clk
00:32:18]} {[%emt 00:04:49]} 23. Rxe5 {[%clk 00:38:14]} {[%emt 00:11:23]} Qg7+
{[%clk 00:32:11]} {[%emt 00:00:36]} 24. Kh1 {[%clk 00:38:25]} {[%emt 00:00:19]}
dxe5 {[%clk 00:32:28]} {[%emt 00:00:13]} 25. Ne4 {[%clk 00:38:48]} {[%emt
00:00:08]} Bxe6 {[%clk 00:28:27]} {[%emt 00:04:31]} 26. Bxe6 {[%clk 00:35:58]}
{[%emt 00:03:20]} Rf8 {[%clk 00:28:04]} {[%emt 00:00:52]} 27. Qg4 {[%clk
00:36:11]} {[%emt 00:00:17]} f3 {[%clk 00:24:37]} {[%emt 00:03:57]} 28. Qxg7+
{[%clk 00:35:09]} {[%emt 00:01:33]} Kxg7 {[%clk 00:24:59]} {[%emt 00:00:09]} 29.
Kg1 {[%clk 00:35:27]} {[%emt 00:00:12]} Rf4 {[%clk 00:24:11]} {[%emt 00:01:17]}
30. Ng3 {[%clk 00:35:39]} {[%emt 00:00:18]} Kg6 {[%clk 00:17:51]} {[%emt
00:06:50]} 31. Kf2 {[%clk 00:35:43]} {[%emt 00:00:27]} Kg5 {[%clk 00:16:22]}
{[%emt 00:01:58]} 32. c3 {[%clk 00:34:15]} {[%emt 00:01:58]} h5 {[%clk
00:15:52]} {[%emt 00:01:00]} 33. Nf1 {[%clk 00:34:02]} {[%emt 00:00:43]} Rf6
{[%clk 00:14:18]} {[%emt 00:02:02]} 34. Bc8 {[%clk 00:34:06]} {[%emt 00:00:28]}
Kf4 {[%clk 00:14:11]} {[%emt 00:00:37]} 35. Ng3 {[%clk 00:33:36]} {[%emt
00:01:00]} Rh6 {[%clk 00:14:09]} {[%emt 00:00:32]} 36. Nf1 {[%clk 00:30:53]}
{[%emt 00:03:13]} e4 {[%clk 00:13:59]} {[%emt 00:00:40]} 37. Bxb7 {[%clk
00:30:44]} {[%emt 00:00:39]} Rd6 {[%clk 00:14:11]} {[%emt 00:00:17]} 38. Ba6
{[%clk 00:30:16]} {[%emt 00:00:59]} e3+ {[%clk 00:13:50]} {[%emt 00:00:50]} 39.
Ke1 {[%clk 00:30:17]} {[%emt 00:00:29]} Rg6 {[%clk 00:11:06]} {[%emt 00:03:14]}
40. b4 {[%clk 00:29:30]} {[%emt 00:01:17]} Rg2 {[%clk 00:11:11]} {[%emt
00:00:25]} 0-1

[Event "Polofinale MCR junioru 2023"]
[Site "Czech Republic"]
[Date "2023.11.14"]
[Round "5.25"]
[White "Sadil, Antonin"]
[Black "Cerny, Michal"]
[Result "1/2-1/2"]
[TimeControl "90 min per 40 moves + 15 min + 30 sec / move from move 1"]
[WhiteFideId "23735597"]
[BlackFideId "391964"]
[WhiteElo "1648"]
[BlackElo "1920"]

1. e4 {[%clk 01:28:41]} {[%emt 00:02:18]} c5 {[%clk 01:30:51]} {[%emt
00:00:09]} 2. Nf3 {[%clk 01:28:59]} {[%emt 00:00:12]} e6 {[%clk 01:31:13]}
{[%emt 00:00:08]} 3. c3 {[%clk 01:29:15]} {[%emt 00:00:15]} d5 {[%clk
01:31:33]} {[%emt 00:00:10]} 4. exd5 {[%clk 01:29:22]} {[%emt 00:00:23]} Qxd5
{[%clk 01:31:45]} {[%emt 00:00:18]} 5. d4 {[%clk 01:29:38]} {[%emt 00:00:14]}
Nf6 {[%clk 01:31:57]} {[%emt 00:00:18]} 6. Be3 {[%clk 01:29:00]} {[%emt
00:01:07]} cxd4 {[%clk 01:31:51]} {[%emt 00:00:37]} 7. cxd4 {[%clk 01:27:34]}
{[%emt 00:01:55]} Nc6 {[%clk 01:31:32]} {[%emt 00:00:50]} 8. a3 {[%clk
01:26:21]} {[%emt 00:01:43]} Be7 {[%clk 01:25:24]} {[%emt 00:06:38]} 9. Nc3
{[%clk 01:26:32]} {[%emt 00:00:19]} Qd8 {[%clk 01:25:31]} {[%emt 00:00:23]} 10.
Bc4 {[%clk 01:22:58]} {[%emt 00:04:02]} O-O {[%clk 01:25:10]} {[%emt 00:00:52]}
11. O-O {[%clk 01:22:59]} {[%emt 00:00:29]} a6 {[%clk 01:22:54]} {[%emt
00:02:47]} 12. d5 {[%clk 01:19:00]} {[%emt 00:04:28]} exd5 {[%clk 01:22:17]}
{[%emt 00:01:06]} 13. Nxd5 {[%clk 01:19:09]} {[%emt 00:00:21]} Nxd5 {[%clk
01:21:56]} {[%emt 00:00:52]} 14. Bxd5 {[%clk 01:17:17]} {[%emt 00:02:22]} Qd6
{[%clk 01:11:37]} {[%emt 00:10:49]} 15. Ng5 {[%clk 01:09:53]} {[%emt 00:07:53]}
Qe5 {[%clk 01:06:48]} {[%emt 00:05:20]} 16. Qh5 {[%clk 00:57:51]} {[%emt
00:12:32]} Bxg5 {[%clk 01:07:07]} {[%emt 00:00:12]} 17. Qxg5 {[%clk 00:57:45]}
{[%emt 00:00:35]} Qxg5 {[%clk 00:50:23]} {[%emt 00:17:13]} 18. Bxg5 {[%clk
00:58:04]} {[%emt 00:00:12]} h6 {[%clk 00:43:36]} {[%emt 00:07:17]} 19. Be3
{[%clk 00:57:10]} {[%emt 00:01:24]} Nd8 {[%clk 00:43:06]} {[%emt 00:01:01]} 20.
Rac1 {[%clk 00:54:34]} {[%emt 00:03:05]} Be6 {[%clk 00:40:56]} {[%emt
00:02:41]} 21. Bf3 {[%clk 00:53:33]} {[%emt 00:01:30]} Rc8 {[%clk 00:33:07]}
{[%emt 00:08:20]} 22. Bc5 {[%clk 00:47:36]} {[%emt 00:06:27]} Re8 {[%clk
00:33:20]} {[%emt 00:00:17]} 23. Rc3 {[%clk 00:46:59]} {[%emt 00:01:05]} Nc6
{[%clk 00:21:29]} {[%emt 00:12:22]} 24. Rfc1 {[%clk 00:42:36]} {[%emt
00:04:52]} Na5 {[%clk 00:17:50]} {[%emt 00:04:10]} 25. Be3 {[%clk 00:38:41]}
{[%emt 00:04:24]} Rxc3 {[%clk 00:16:24]} {[%emt 00:01:58]} 26. Rxc3 {[%clk
00:38:49]} {[%emt 00:00:22]} Rc8 {[%clk 00:15:23]} {[%emt 00:01:32]} 27. Rxc8+
{[%clk 00:38:45]} {[%emt 00:00:34]} Bxc8 {[%clk 00:15:51]} {[%emt 00:00:01]} 28.
Bd5 {[%clk 00:38:35]} {[%emt 00:00:40]} Be6 {[%clk 00:13:11]} {[%emt 00:03:10]}
29. Bb6 {[%clk 00:36:16]} {[%emt 00:02:49]} Bxd5 {[%clk 00:12:47]} {[%emt
00:00:55]} 30. Bxa5 {[%clk 00:36:33]} {[%emt 00:00:13]} 1/2-1/2